bitfinex/quotes_BTCUSD_20251016
["timestamp","ask_amount","ask_price","bid_price","bid_amount"]
[1760589646844,3.39471388,111660.0,111650.0,0.00048905]
[1760589647319,3.40867388,111660.0,111650.0,0.00048905]
[1760589647887,3.40967388,111660.0,111650.0,0.00048905]
[1760589651897,3.40967388,111660.0,111650.0,0.00165631]
[1760589652359,3.40967388,111660.0,111650.0,1e-08]
[1760589652360,3.69788832,111660.0,111650.0,1e-08]
[1760589653050,3.7145981,111660.0,111650.0,1e-08]
[1760589653202,3.74674897,111660.0,111650.0,1e-08]
[1760589653410,3.72263582,111660.0,111650.0,1e-08]
[1760589655420,3.73871126,111660.0,111650.0,1e-08]
[1760589655631,3.73771126,111660.0,111650.0,1e-08]
[1760589656323,3.73871126,111660.0,111650.0,1e-08]
[1760589656748,3.73771126,111660.0,111650.0,1e-08]
[1760589656958,3.73971126,111660.0,111650.0,1e-08]
[1760589657593,3.74071126,111660.0,111650.0,1e-08]
[1760589662412,0.51913121,111650.0,111640.0,0.0004]
[1760589662636,4.01892453,111650.0,111640.0,0.00044973]
[1760589662870,4.01892453,111650.0,111640.0,1e-08]
[1760589663104,4.02251718,111650.0,111640.0,1e-08]
[1760589664463,3.95843362,111650.0,111640.0,1e-08]
[1760589666750,3.96043362,111650.0,111640.0,1e-08]
[1760589666962,3.71113362,111650.0,111640.0,1e-08]
[1760589667409,3.43104225,111640.0,111630.0,0.0004]
[1760589667615,3.72082564,111640.0,111630.0,0.0004892]
[1760589667851,3.74202321,111640.0,111630.0,0.0004892]
[1760589668106,3.74561593,111640.0,111630.0,0.0004892]
[1760589668513,3.74561593,111640.0,111630.0,0.00165677]
[1760589669965,3.74560573,111640.0,111630.0,0.00165677]
[1760589671445,3.68150111,111640.0,111630.0,0.00165677]
[1760589671582,3.93080111,111640.0,111630.0,0.00165677]
[1760589671790,4.01115087,111640.0,111630.0,0.00165677]
[1760589672443,3.0910583,111630.0,111620.0,0.0004]
[1760589672754,3.37211656,111630.0,111620.0,0.0004497]
[1760589673305,3.37211656,111630.0,111620.0,1e-08]
[1760589673306,3.71570937,111630.0,111620.0,1e-08]
[1760589673510,3.09107435,111620.0,111610.0,0.0004]
[1760589673712,3.62639268,111620.0,111610.0,0.0004]
[1760589674145,0.2493,111610.0,111600.0,1e-08]
[1760589674360,0.2493,111610.0,111600.0,0.0001338]
[1760589674361,3.87757447,111610.0,111600.0,0.0001338]
[1760589674577,3.96905869,111610.0,111600.0,0.0001338]
[1760589674998,3.71975869,111610.0,111600.0,0.0001338]
[1760589675256,3.83063832,111610.0,111600.0,0.0001338]
[1760589675683,3.84087902,111610.0,111600.0,0.0001338]
[1760589676358,3.84187902,111610.0,111600.0,1e-08]
[1760589677415,3.09115465,111570.0,111560.0,0.02813135]
[1760589677618,3.15855359,111570.0,111560.0,0.10900669]
[1760589678650,3.15855359,111570.0,111560.0,0.11000669]
[1760589679085,3.15855359,111570.0,111560.0,0.11509611]
[1760589679904,3.15855359,111570.0,111560.0,0.29437183]
[1760589680137,3.15855359,111570.0,111560.0,0.27644426]
[1760589680347,3.15849708,111570.0,111560.0,0.27644426]
[1760589681684,2.97923743,111570.0,111560.0,0.27644426]
[1760589681904,0.07532762,111570.0,111560.0,1.07678124]
[1760589682113,0.07532762,111570.0,111560.0,1.18846124]
[1760589682114,0.0192304,111570.0,111560.0,1.18846124]
[1760589682327,0.02404263,111580.0,111560.0,1.18846124]
[1760589682328,0.02404263,111590.0,111580.0,0.21542587]
[1760589682558,0.22251067,111590.0,111580.0,0.30511599]
[1760589682785,0.51925965,111570.0,111560.0,0.02849413]
[1760589682993,3.50649837,111570.0,111560.0,0.13119657]
[1760589683203,3.47443992,111570.0,111560.0,0.13319657]
[1760589683637,3.47443992,111570.0,111560.0,0.13119657]
[1760589683842,3.50649889,111570.0,111560.0,0.13119657]
[1760589684251,3.50649889,111570.0,111560.0,0.13219657]
[1760589684457,0.41534424,111570.0,111560.0,0.40116241]
[1760589684667,0.04328527,111570.0,111560.0,0.27051484]
[1760589684872,0.01924052,111570.0,111560.0,0.38323484]
[1760589685283,0.01924052,111570.0,111560.0,0.38423484]
[1760589685489,0.19850017,111570.0,111560.0,0.38423484]
[1760589686526,0.19849139,111570.0,111560.0,0.38423484]
[1760589687549,0.01923174,111570.0,111560.0,0.38423484]
[1760589687762,0.01923174,111570.0,111560.0,0.80249447]
[1760589687948,0.01923174,111570.0,111560.0,0.30769712]
[1760589688198,0.01923174,111570.0,111560.0,0.42450654]
[1760589688648,0.01923174,111570.0,111560.0,0.31178654]
[1760589689102,0.01923174,111570.0,111560.0,0.42450654]
[1760589689734,0.01923174,111570.0,111560.0,0.80658389]
[1760589690150,0.55222866,111590.0,111580.0,0.17924359]
[1760589690384,3.43115465,111570.0,111560.0,0.06230729]
[1760589690600,3.51915581,111570.0,111560.0,0.1138]
[1760589691283,3.51915581,111570.0,111560.0,0.1128]
[1760589691520,3.60883789,111570.0,111560.0,0.1128]
[1760589694458,3.43117072,111560.0,111550.0,0.0004]
[1760589694677,3.53915807,111560.0,111550.0,0.11324]
[1760589694890,3.53915806,111560.0,111550.0,0.11324]
[1760589695133,3.62884014,111560.0,111550.0,0.11324]
[1760589696475,3.62884014,111560.0,111550.0,0.0004]
[1760589696677,3.62884014,111560.0,111550.0,0.11328]
[1760589696922,3.62884014,111560.0,111550.0,0.11795404]
[1760589697187,3.62884014,111560.0,111550.0,0.00507404]
[1760589697400,3.73456812,111560.0,111550.0,0.00507404]
[1760589697624,3.73456812,111560.0,111550.0,0.11791404]
[1760589698276,3.73456812,111560.0,111550.0,0.11795404]
[1760589699161,3.73456812,111560.0,111550.0,0.00507404]
[1760589699307,3.73456812,111560.0,111550.0,0.11795404]
[1760589699517,3.75576569,111560.0,111550.0,0.11795404]
[1760589700323,3.70767501,111560.0,111550.0,0.06946648]
[1760589701117,0.51929179,111550.0,111540.0,0.0004]
[1760589701342,3.69886037,111550.0,111540.0,0.11377662]
[1760589701495,3.69886037,111550.0,111540.0,0.11436113]
[1760589702218,3.74694585,111550.0,111540.0,0.11432113]
[1760589702626,3.69886037,111550.0,111540.0,0.11432113]
[1760589703216,3.74694585,111550.0,111540.0,0.11432113]
[1760589703469,3.69886037,111550.0,111540.0,0.11432113]
[1760589704112,3.59248435,111550.0,111540.0,0.11432113]
[1760589704304,3.30319256,111550.0,111540.0,0.11432113]
[1760589704542,3.30319256,111550.0,111540.0,0.293669]
[1760589704543,0.04329573,111550.0,111540.0,0.293669]
[1760589704751,0.01924058,111550.0,111540.0,0.27047912]
[1760589704955,0.01924058,111550.0,111540.0,0.38335912]
[1760589705373,0.19853237,111550.0,111540.0,0.38335912]
[1760589705710,0.19853237,111550.0,111540.0,0.20505125]
[1760589705918,0.19853237,111550.0,111540.0,0.20605125]
[1760589706530,0.19853237,111550.0,111540.0,0.09317125]
[1760589706750,0.19853237,111550.0,111540.0,0.20605125]
[1760589707455,3.11042737,111550.0,111540.0,0.20605125]
[1760589709106,3.11042737,111550.0,111540.0,0.23300902]
[1760589710820,3.11042737,111550.0,111540.0,0.41231689]
[1760589711204,3.11042737,111550.0,111540.0,0.23300902]
[1760589711627,3.62979957,111550.0,111540.0,0.0304389]
[1760589711802,3.09123502,111520.0,111510.0,0.0004]
[1760589712030,3.09123502,111520.0,111510.0,0.03792974]
[1760589712031,3.29893255,111520.0,111510.0,0.03792974]
[1760589712474,3.34703428,111520.0,111510.0,0.03968385]
[1760589712680,3.46368993,111520.0,111510.0,0.03968385]
[1760589712854,3.49416032,111520.0,111510.0,0.03968385]
[1760589713060,3.46718675,111520.0,111510.0,0.03968385]
[1760589714248,3.46818675,111520.0,111510.0,0.03968385]
[1760589714448,3.42008502,111520.0,111510.0,0.03968385]
[1760589714778,3.42108502,111520.0,111510.0,0.03968385]
[1760589715182,3.46918675,111520.0,111510.0,0.00220385]
[1760589715442,3.46918675,111520.0,111510.0,0.11532385]
[1760589716308,3.39985716,111520.0,111510.0,0.11532385]
[1760589718370,3.39985716,111520.0,111510.0,0.00220385]
[1760589718590,3.39985716,111520.0,111510.0,0.11528385]
[1760589718810,3.44795889,111520.0,111510.0,0.11528385]
[1760589719329,3.41589107,111520.0,111510.0,0.11528385]
[1760589719606,3.4479002,111520.0,111510.0,0.11528385]
[1760589720358,3.41589107,111520.0,111510.0,0.11528385]
[1760589723125,3.43708864,111520.0,111510.0,0.11528385]
[1760589725010,3.43708864,111520.0,111510.0,0.00220385]
[1760589725441,3.43708864,111520.0,111510.0,0.11012385]
[1760589726300,3.43708864,111520.0,111510.0,0.11528385]
[1760589726716,3.43708864,111520.0,111510.0,0.00220385]
[1760589726957,3.43708864,111520.0,111510.0,0.11524385]
[1760589727187,3.43708864,111520.0,111510.0,0.00220385]
[1760589727408,3.43708864,111520.0,111510.0,0.11304001]
[1760589727628,3.38898691,111520.0,111510.0,0.11304001]
[1760589727848,3.72898691,111520.0,111510.0,0.11304001]
[1760589728098,3.72898691,111520.0,111510.0,1e-08]
[1760589729669,3.66612691,111520.0,111510.0,1e-08]
[1760589729893,3.68732448,111520.0,111510.0,0.11304001]
[1760589731410,3.71933835,111520.0,111510.0,0.11304001]
[1760589731663,3.68732448,111520.0,111510.0,0.11304001]
[1760589733396,3.71934185,111520.0,111510.0,0.11304001]
[1760589733601,3.60763157,111520.0,111510.0,0.11304001]
[1760589734518,3.586434,111520.0,111510.0,0.11304001]
[1760589735266,3.49674388,111520.0,111510.0,0.11304001]
[1760589735460,3.48007516,111520.0,111510.0,0.11304001]
[1760589735929,3.3967876,111520.0,111510.0,1e-08]
[1760589736109,3.3967876,111520.0,111510.0,0.11304001]
[1760589736312,3.48646968,111520.0,111510.0,1e-08]
[1760589736460,3.53719294,111520.0,111510.0,1e-08]
[1760589736663,3.55839051,111520.0,111510.0,0.11308001]
[1760589737695,3.64808063,111520.0,111510.0,0.11308001]
[1760589737902,3.65761333,111520.0,111510.0,0.11308001]
[1760589738118,3.66561596,111520.0,111510.0,0.11308001]
[1760589740302,3.71363561,111520.0,111510.0,0.11308001]
[1760589740840,3.68161824,111520.0,111510.0,0.11308001]
[1760589743612,3.63359859,111520.0,111510.0,0.06457671]
[1760589745111,3.61435801,111520.0,111510.0,0.06457671]
[1760589746582,3.68197549,111520.0,111510.0,0.06457671]
[1760589746992,3.66265621,111520.0,111510.0,0.06457671]
[1760589747990,3.68197485,111520.0,111510.0,0.06457671]
[1760589748399,3.66265621,111520.0,111510.0,0.06457671]
[1760589749319,3.68197081,111520.0,111510.0,0.06457671]
[1760589750327,3.71416797,111520.0,111510.0,0.06457671]
[1760589751646,3.71423018,111520.0,111510.0,0.06457671]
[1760589751807,3.66593532,111520.0,111510.0,0.06457671]
[1760589753574,0.51935611,111510.0,111500.0,0.0004]
[1760589753781,3.45122706,111510.0,111500.0,0.1134]
[1760589754195,3.46122706,111510.0,111500.0,0.0004]
[1760589754402,3.46122706,111510.0,111500.0,0.1134]
[1760589755136,3.55090914,111510.0,111500.0,0.1134]
[1760589755347,3.46122706,111510.0,111500.0,0.1134]
[1760589756191,3.42902934,111510.0,111500.0,0.1134]
[1760589759176,3.42902934,111510.0,111500.0,0.11398483]
[1760589759587,3.42902934,111510.0,111500.0,0.00098483]
[1760589759800,3.42902934,111510.0,111500.0,0.11394483]
[1760589760002,3.48623925,111510.0,111500.0,0.11394483]
[1760589760424,3.50743682,111510.0,111500.0,0.11394483]
[1760589760848,3.45022691,111510.0,111500.0,0.11394483]
[1760589765080,3.45022691,111510.0,111500.0,0.11390483]
[1760589766698,3.45222691,111510.0,111500.0,0.11390483]
[1760589770636,3.45227642,111510.0,111500.0,0.11390483]
[1760589774532,3.42810101,111510.0,111500.0,0.11390483]
[1760589775410,3.42810101,111510.0,111500.0,0.11386483]
[1760589775936,3.39690344,111510.0,111500.0,0.11386483]
[1760589776153,3.41810101,111510.0,111500.0,0.11386483]
[1760589777398,3.41810101,111510.0,111500.0,0.13180204]
[1760589777675,3.58559525,111510.0,111500.0,0.01892204]
[1760589777891,3.66702727,111510.0,111500.0,0.11398483]
[1760589780642,3.39844156,111510.0,111500.0,0.11398483]
[1760589780862,3.57779767,111510.0,111500.0,0.11398483]
[1760589781292,3.57779767,111510.0,111500.0,0.00098483]
[1760589781530,3.57779767,111510.0,111500.0,0.11398483]
[1760589781809,3.57779767,111510.0,111500.0,0.00098483]
[1760589782041,3.03559528,111490.0,111480.0,0.005]
[1760589782283,3.03559528,111490.0,111440.0,0.0006]
[1760589782284,0.00897102,111470.0,111440.0,0.0006]
[1760589782499,3.03565966,111450.0,111440.0,0.02771791]
[1760589782718,3.50591322,111450.0,111440.0,0.00073411]
[1760589782932,3.52711079,111450.0,111440.0,0.00073411]
[1760589783193,3.49199128,111450.0,111440.0,0.00073411]
[1760589783417,2.856207,111400.0,111390.0,0.0004]
[1760589783635,2.8563404,111400.0,111390.0,0.17994933]
[1760589783856,0.0001334,111400.0,111390.0,0.29370933]
[1760589784081,0.0001334,111400.0,111390.0,0.29378933]
[1760589784291,0.0001334,111400.0,111390.0,0.32997161]
[1760589784504,0.0001334,111400.0,111390.0,0.41966173]
[1760589785608,0.0001334,111400.0,111390.0,0.75966173]
[1760589788420,2.9279591,111430.0,111420.0,0.17950098]
[1760589788629,2.9279591,111430.0,111420.0,0.2934906]
[1760589788825,2.856207,111430.0,111420.0,0.29817282]
[1760589789677,2.86552289,111430.0,111420.0,0.29817282]
[1760589792237,3.04500776,111430.0,111420.0,0.00483184]
[1760589792451,3.04500776,111430.0,111420.0,0.29813282]
[1760589792882,3.04500776,111430.0,111420.0,0.00483184]
[1760589793102,3.04500776,111430.0,111420.0,0.29813282]
[1760589793339,3.04500776,111430.0,111420.0,0.18433282]
[1760589793514,3.04500776,111430.0,111420.0,0.29813282]
[1760589794604,3.38500776,111430.0,111420.0,0.29813282]
[1760589795037,3.40417452,111430.0,111420.0,0.29813282]
[1760589796089,3.22468965,111430.0,111420.0,0.29813282]
[1760589796432,2.87537376,111430.0,111420.0,0.29813282]
[1760589796643,0.23052861,111450.0,111430.0,0.17948487]
[1760589796644,2.856207,111440.0,111430.0,0.17948487]
[1760589796842,2.87537572,111440.0,111430.0,0.17948487]
[1760589797047,0.01916872,111440.0,111430.0,0.30535727]
[1760589797279,2.856207,111450.0,111440.0,0.17945632]
[1760589797476,3.06393248,111450.0,111440.0,0.11376]
[1760589797675,3.06393248,111450.0,111440.0,0.01794687]
[1760589797880,2.856207,111430.0,111420.0,0.27868792]
[1760589798085,2.856207,111430.0,111420.0,0.39244792]
[1760589798306,2.856207,111430.0,111420.0,0.27868792]
[1760589798480,2.856207,111430.0,111420.0,0.39244792]
[1760589800113,2.87538973,111430.0,111420.0,0.39244792]
[1760589800359,0.01918273,111430.0,111420.0,0.39244792]
[1760589800567,2.856207,111430.0,111420.0,0.39244792]
[1760589800791,0.01918273,111430.0,111420.0,0.39244792]
[1760589801146,0.5641618,111430.0,111420.0,0.00014962]
[1760589801352,3.58500726,111430.0,111420.0,0.00014962]
[1760589801702,3.46126037,111430.0,111420.0,0.11398962]
[1760589801879,3.42928509,111430.0,111420.0,0.00014962]
[1760589802104,3.45013468,111430.0,111420.0,0.09730962]
[1760589802310,3.40217175,111430.0,111420.0,0.09730962]
[1760589802513,3.40217175,111430.0,111420.0,0.10199184]
[1760589802849,3.40217175,111430.0,111420.0,0.11871184]
[1760589803550,3.40217175,111430.0,111420.0,0.00483184]
[1760589803764,3.40217175,111430.0,111420.0,0.11871184]
[1760589803986,3.03574021,111400.0,111390.0,0.0004]
[1760589804207,3.08436097,111400.0,111390.0,0.11481906]
[1760589804444,3.57200201,111400.0,111390.0,0.00089906]
[1760589804671,3.54003473,111400.0,111390.0,0.11485906]
[1760589805386,3.54003473,111400.0,111390.0,0.00089906]
[1760589805587,3.58176589,111400.0,111390.0,0.00089906]
[1760589805806,3.58176589,111400.0,111390.0,0.11485906]
[1760589807069,3.60876711,111400.0,111390.0,0.11485906]
[1760589807284,3.60876711,111400.0,111390.0,0.00089906]
[1760589807285,3.67316471,111400.0,111390.0,0.00089906]
[1760589807508,3.67316471,111400.0,111390.0,0.11481906]
[1760589807717,3.67316471,111400.0,111390.0,0.00089906]
[1760589807931,3.67316471,111400.0,111390.0,0.11481906]
[1760589808356,3.67316471,111400.0,111390.0,0.04198474]
[1760589808840,0.51956545,111380.0,111370.0,8e-05]
[1760589809054,3.64179813,111380.0,111370.0,0.1144534]
[1760589809291,3.66264795,111380.0,111370.0,0.0002134]
[1760589809709,3.74283467,111380.0,111370.0,0.0298534]
[1760589809936,3.196207,111340.0,111330.0,0.005]
[1760589810160,3.7757969,111340.0,111330.0,0.03262913]
[1760589810375,3.73271254,111340.0,111330.0,0.01042278]
[1760589810814,3.7420551,111340.0,111330.0,0.05662278]
[1760589811242,0.17971066,111290.0,111280.0,0.01797268]
[1760589811455,3.05257114,111290.0,111280.0,0.054497]
[1760589811677,3.07643862,111290.0,111280.0,0.115017]
[1760589811887,3.09728852,111290.0,111280.0,0.168937]
[1760589812095,3.09728852,111290.0,111280.0,0.000497]
[1760589812304,3.07643862,111290.0,111280.0,0.168937]
[1760589813164,2.87281393,111290.0,111280.0,0.18022381]
[1760589813357,3.05252459,111290.0,111280.0,0.054417]
[1760589813567,3.07161153,111290.0,111280.0,0.168937]
[1760589813772,3.07161153,111290.0,111280.0,0.000497]
[1760589813932,3.09552556,111290.0,111280.0,0.000497]
[1760589814137,2.89190087,111290.0,111280.0,0.29474381]
[1760589814766,3.07161153,111290.0,111280.0,0.29474381]
[1760589815416,3.0550046,111290.0,111280.0,0.29474381]
[1760589815621,2.87529394,111290.0,111280.0,0.29474381]
[1760589816028,2.89614386,111290.0,111280.0,0.34862381]
[1760589816236,3.53206984,111290.0,111280.0,0.000497]
[1760589816442,3.64566023,111290.0,111280.0,0.114977]
[1760589816889,3.64566023,111290.0,111280.0,0.11790931]
[1760589817336,3.6217462,111290.0,111280.0,0.11790931]
[1760589817960,3.53206412,111290.0,111280.0,0.11790931]
[1760589818390,3.26266334,111290.0,111280.0,0.29763612]
[1760589818604,2.87529394,111290.0,111280.0,0.18315612]
[1760589818815,3.03590156,111300.0,111280.0,0.3877784]
[1760589819063,2.856207,111290.0,111280.0,0.27036609]
[1760589819287,2.856207,111290.0,111280.0,0.000497]
[1760589819494,2.856207,111290.0,111280.0,0.34866381]
[1760589819970,2.856207,111290.0,111280.0,0.18022381]
[1760589820218,2.856207,111290.0,111280.0,0.34866381]
[1760589820422,2.856207,111290.0,111280.0,0.18022381]
[1760589820658,3.46560778,111290.0,111280.0,0.000497]
[1760589820878,3.51545975,111290.0,111280.0,0.114977]
[1760589821094,3.53194949,111290.0,111280.0,0.114977]
[1760589821330,3.55586352,111290.0,111280.0,0.114977]
[1760589822185,3.55586352,111290.0,111280.0,0.000497]
[1760589822394,3.6455456,111290.0,111280.0,0.115017]
[1760589822611,3.65197652,111290.0,111280.0,0.115017]
[1760589823035,3.65197652,111290.0,111280.0,0.000497]
[1760589823251,3.65197652,111290.0,111280.0,0.115017]
[1760589823463,3.65196712,111290.0,111280.0,0.115017]
[1760589823878,3.65226644,111290.0,111280.0,0.115017]
[1760589824507,3.65226644,111290.0,111280.0,0.11794931]
[1760589824784,3.65226644,111290.0,111280.0,0.00342931]
[1760589824977,3.65226644,111290.0,111280.0,0.11794931]
[1760589827183,3.68415182,111290.0,111280.0,0.00342931]
[1760589827414,3.65350755,111290.0,111280.0,0.10230931]
[1760589827642,3.69648366,111290.0,111280.0,0.10230931]
[1760589827846,3.69648366,111290.0,111280.0,0.11790931]
[1760589828392,3.69648366,111290.0,111280.0,0.11806931]
[1760589828604,3.37593381,111280.0,111260.0,1e-08]
[1760589828838,3.52900638,111270.0,111260.0,1e-08]
[1760589829042,3.7044866,111270.0,111260.0,1e-08]
[1760589829252,2.856207,111230.0,111220.0,0.08013974]
[1760589829451,2.856207,111230.0,111220.0,0.16185974]
[1760589829452,3.1447046,111230.0,111220.0,0.16185974]
[1760589829664,3.16555882,111230.0,111220.0,0.11476]
[1760589830322,2.89172206,111230.0,111220.0,0.11476]
[1760589830529,2.87525665,111230.0,111220.0,0.29458377]
[1760589831541,2.87525665,111230.0,111220.0,0.42045617]
[1760589831736,3.55678939,111230.0,111220.0,0.02711546]
[1760589832023,3.56387496,111230.0,111220.0,0.1148]
[1760589832188,3.38406736,111230.0,111220.0,0.1148]
[1760589832400,3.56387496,111230.0,111220.0,0.1148]
[1760589832625,3.56387496,111230.0,111220.0,0.11488]
[1760589833217,3.44332994,111230.0,111220.0,0.11488]
[1760589833840,3.53301202,111230.0,111220.0,0.11488]
[1760589834030,3.55386692,111230.0,111220.0,0.11488]
[1760589834386,3.46418484,111230.0,111220.0,8e-05]
[1760589834592,3.51172351,111230.0,111220.0,0.11484]
[1760589835004,3.37604434,111220.0,111210.0,0.02704077]
[1760589835208,3.37604694,111210.0,111200.0,0.155015]
[1760589835413,3.50131019,111210.0,111200.0,0.155015]
[1760589835620,3.5221653,111210.0,111200.0,0.155015]
[1760589835819,3.65942836,111210.0,111200.0,0.155015]
[1760589836234,3.69513368,111210.0,111200.0,0.155015]
[1760589836463,3.63176738,111210.0,111200.0,0.155015]
[1760589836838,3.69513368,111210.0,111200.0,0.155095]
[1760589837500,3.69513368,111210.0,111200.0,0.040135]
[1760589837708,3.69513368,111210.0,111200.0,0.155095]
[1760589838127,0.51992083,111160.0,111150.0,10.09532]
[1760589838327,2.9235621,111160.0,111150.0,10.09532]
[1760589838528,3.12732142,111160.0,111150.0,9.9804]
[1760589838744,3.12732142,111160.0,111150.0,10.09552]
[1760589838959,2.91561862,111160.0,111150.0,10.27545702]
[1760589839174,0.03557313,111160.0,111150.0,10.32945702]
[1760589839372,0.03557313,111160.0,111150.0,10.32995681]
[1760589839614,0.03557313,111160.0,111150.0,10.33759144]
[1760589839824,2.856207,111170.0,111150.0,10.33759144]
[1760589840033,2.856207,111160.0,111150.0,10.32995681]
[1760589841097,2.856207,111160.0,111150.0,10.16083681]
[1760589841312,2.856207,111160.0,111150.0,10.32995681]
[1760589841543,2.856207,111160.0,111150.0,10.33759144]
[1760589843089,2.856207,111180.0,111170.0,0.17990465]
[1760589843304,2.856207,111180.0,111170.0,0.29502465]
[1760589843527,2.856207,111180.0,111170.0,0.30148356]
[1760589844406,2.856207,111190.0,111180.0,0.17988846]
[1760589844624,2.856207,111200.0,111190.0,0.17987229]
[1760589844850,2.856207,111210.0,111190.0,0.17987229]
[1760589845048,0.29239835,111220.0,111210.0,0.17983994]
[1760589845049,2.856207,111220.0,111210.0,0.17983994]
[1760589845705,2.856207,111230.0,111220.0,0.17982377]
[1760589845919,3.0360146,111230.0,111220.0,0.11516]
[1760589846650,3.0360146,111230.0,111220.0,0.11016]
[1760589847091,2.856207,111230.0,111220.0,0.28998377]
[1760589849149,2.856207,111240.0,111230.0,0.1798076]
[1760589849597,3.03599844,111240.0,111230.0,0.1798076]
[1760589849820,2.88798897,111240.0,111230.0,0.1798076]
[1760589850738,2.856207,111240.0,111230.0,0.1798076]
[1760589851183,2.856207,111240.0,111230.0,0.30568]
[1760589851409,2.856207,111250.0,111240.0,0.17979144]
[1760589851635,2.856207,111250.0,111240.0,0.38456156]
[1760589851862,0.03178197,111260.0,111250.0,0.17977528]
[1760589852115,2.88798897,111270.0,111260.0,0.17975912]
[1760589852368,2.9237222,111270.0,111260.0,0.29483912]
[1760589852817,2.89194023,111270.0,111260.0,0.29483912]
[1760589853063,2.89194023,111270.0,111260.0,0.2949889]
[1760589853291,3.07168319,111270.0,111260.0,0.16922978]
[1760589853509,2.89194023,111270.0,111260.0,0.36696481]
[1760589853731,2.89194023,111270.0,111260.0,0.3489889]
[1760589854421,2.89194023,111270.0,111260.0,0.43867902]
[1760589854636,0.03573323,111270.0,111260.0,0.43867902]
[1760589855054,0.03573323,111270.0,111260.0,0.4748613]
[1760589855326,0.01912989,111270.0,111260.0,0.4748613]
[1760589855573,0.01912989,111270.0,111260.0,0.4748213]
[1760589855787,0.01912989,111270.0,111260.0,0.47599469]
[1760589856443,0.01912989,111270.0,111260.0,0.43981241]
[1760589856933,2.88895353,111290.0,111280.0,0.17972681]
[1760589857151,2.88895353,111290.0,111280.0,0.29472681]
[1760589857152,2.92467857,111290.0,111280.0,0.29472681]
[1760589857368,2.8928966,111290.0,111280.0,0.29472681]
[1760589857578,0.0366896,111290.0,111280.0,0.29472681]
[1760589858471,0.0366896,111290.0,111280.0,0.34868681]
[1760589858687,0.03668322,111290.0,111280.0,0.17972681]
[1760589859163,3.03594996,111270.0,111260.0,0.0898399]
[1760589859400,2.8753329,111270.0,111260.0,0.45653493]
[1760589859631,2.8753329,111270.0,111260.0,0.43855902]
[1760589859853,2.856207,111280.0,111270.0,0.17974296]
[1760589860072,2.8919048,111280.0,111270.0,0.17974296]
[1760589860936,2.87279411,111280.0,111270.0,0.34870296]
[1760589861151,3.05252092,111280.0,111260.0,0.26959902]
[1760589861374,3.07161716,111280.0,111270.0,0.36663725]
[1760589861599,3.05252092,111280.0,111270.0,0.34866296]
[1760589862330,3.05252092,111280.0,111270.0,0.3492496]
[1760589862779,3.05252092,111280.0,111270.0,0.1803296]
[1760589862992,3.05252092,111280.0,111270.0,0.3492496]
[1760589863203,3.03593381,111280.0,111270.0,0.00058664]
[1760589863406,2.856207,111280.0,111270.0,0.31322389]
[1760589863641,2.856207,111280.0,111270.0,0.2952496]
[1760589867225,2.856207,111280.0,111270.0,0.421122]
[1760589868713,0.00096456,111290.0,111280.0,0.21590909]
[1760589868919,0.00096456,111290.0,111280.0,0.30559921]
[1760589873264,3.05607854,111290.0,111280.0,0.08969012]
[1760589873502,2.87636788,111290.0,111280.0,0.45610961]
[1760589873728,2.87636788,111290.0,111280.0,0.43813693]
[1760589873934,3.05607854,111290.0,111280.0,0.43813693]
[1760589874161,2.87636788,111290.0,111280.0,0.43813693]
[1760589874826,3.07276662,111290.0,111280.0,0.16868]
[1760589875039,3.07276662,111290.0,111280.0,0.36637949]
[1760589875254,3.10454859,111290.0,111280.0,0.34840681]
[1760589875474,3.10454859,111290.0,111280.0,0.16868]
[1760589875697,3.10454859,111290.0,111280.0,0.36637949]
[1760589875912,3.10454859,111290.0,111280.0,0.16868]
[1760589876142,3.10454859,111290.0,111270.0,0.23428383]
[1760589876371,3.10454859,111290.0,111270.0,0.36015623]
[1760589876372,2.856207,111280.0,111270.0,0.36015623]
[1760589876582,2.87540332,111280.0,111270.0,0.47483623]
[1760589877678,0.01919632,111280.0,111270.0,0.47483623]
[1760589878128,0.01919632,111280.0,111270.0,0.47479623]
[1760589879860,2.87295314,111280.0,111270.0,0.47479623]
[1760589880088,2.87295314,111280.0,111270.0,0.47475623]
[1760589880310,3.05232534,111280.0,111260.0,0.00014978]
[1760589880537,3.46564008,111270.0,111260.0,0.00014978]
[1760589880763,3.03604694,111210.0,111200.0,0.0717521]
[1760589880986,3.05279308,111210.0,111200.0,0.07190192]
[1760589881203,3.05279308,111210.0,111200.0,0.17414406]
[1760589881647,0.01674614,111210.0,111200.0,0.26383418]
[1760589881901,0.17982447,111220.0,111200.0,0.26383418]
[1760589882145,0.19654891,111220.0,111210.0,0.13294399]
[1760589882373,0.26054705,111250.0,111210.0,0.29200089]
[1760589882595,2.856207,111230.0,111220.0,0.01798237]
[1760589882854,3.05272703,111230.0,111220.0,0.13298237]
[1760589883076,3.05272703,111230.0,111220.0,0.31280614]
[1760589883293,3.05272703,111230.0,111220.0,0.29482377]
[1760589884378,3.0360146,111230.0,111220.0,0.29482377]
[1760589885713,3.0360146,111230.0,111220.0,0.115]
[1760589885946,3.05270048,111230.0,111220.0,0.115]
[1760589886385,3.05270048,111230.0,111210.0,0.1258724]
[1760589886386,0.17982377,111220.0,111210.0,0.1258724]
[1760589886598,3.03603077,111220.0,111210.0,0.14369012]
[1760589886814,3.03603077,111220.0,111210.0,0.25861012]
[1760589887022,3.03603077,111220.0,111210.0,0.08969012]
[1760589887242,3.03603077,111220.0,111210.0,0.25861012]
[1760589887456,0.17983994,111210.0,111200.0,0.00014982]
[1760589887664,0.17983994,111210.0,111200.0,0.18002222]
[1760589887876,0.17983994,111210.0,111200.0,0.29494222]
[1760589888093,2.856207,111210.0,111200.0,0.47479833]
[1760589888304,3.03604694,111210.0,111200.0,0.47987257]
[1760589888509,0.17983994,111210.0,111200.0,0.47987257]
[1760589888722,2.856207,111210.0,111200.0,0.47987257]
[1760589889348,2.856207,111210.0,111200.0,0.31095257]
[1760589889553,3.03604694,111210.0,111200.0,0.47983257]
[1760589889973,3.03604694,111210.0,111200.0,0.00522406]
[1760589890183,3.03604694,111210.0,111200.0,0.17410406]
[1760589890824,3.03604694,111210.0,111200.0,0.19208967]
[1760589891039,3.03604694,111210.0,111200.0,0.17410406]
[1760589891465,3.03604694,111210.0,111200.0,0.00522406]
[1760589891685,3.05520394,111210.0,111200.0,0.12010406]
[1760589893194,3.03604694,111210.0,111200.0,0.12010406]
[1760589893621,3.13606384,111210.0,111200.0,0.12010406]
[1760589893841,3.13606384,111210.0,111200.0,0.00522406]
[1760589893842,3.6845782,111210.0,111200.0,0.00522406]
[1760589894055,3.70119297,111210.0,111200.0,0.12006406]
[1760589894268,3.51182077,111210.0,111200.0,0.12006406]
[1760589894478,3.495206,111210.0,111200.0,0.12006406]
[1760589894687,3.155206,111210.0,111200.0,0.13671648]
[1760589894897,3.13606384,111210.0,111200.0,0.31657259]
[1760589895104,3.13606384,111210.0,111200.0,0.29992017]